[Event "USA Championship 2022"]
[Site "Saint Louis"]
[Date "2022.10.07"]
[Round "3.6"]
[White "Caruana, Fabiano"]
[Black "Swiercz, Dariusz"]
[Result "1-0"]
[ECO "C65"]
[WhiteElo "2763"]
[BlackElo "2652"]
[Annotator "TA"]
[PlyCount "119"]
[EventDate "2022.09.05"]
[EventType "tourn"]
[EventCountry "USA"]
[SourceTitle "playchess.com"]
[Source "ChessBase"]
[SourceQuality "1"]
[TimeControl "40/5400+30:1800+30"]

{[%evp 9,119,15,27,22,19,14,34,23,19,9,9,9,20,15,22,-12,-4,0,-12,-12,-15,-23,-7,-17,0,-18,-6,-27,0,-7,0,0,0,-3,0,0,30,-24,0,0,0,-3,0,0,0,-10,0,0,0,0,0,-4,-5,-17,-20,-16,-15,-27,0,-61,-14,-66,0,0,23,-21,4,17,56,56,54,47,62,56,77,74,89,91,219,105,105,105,105,105,105,105,105,105,104,33,20,8,15,23,96,89,89,89,89,89,29964,29966,29966,29965,5454,4814,29978,29979,29979,29979,29980,29980]} 1. e4 {[%emt 0:01:34]} e5 {[%emt 0:00:07]} 2. Nf3 {[%emt 0:00:04]} Nc6 {[%emt 0:00:04]} 3. Bb5 {[%emt 0:00:05]} Nf6 {[%emt 0:00:44]} 4. d3 {[%emt 0:00:33]} Bc5 {[%emt 0:00:06]} 5. Bxc6 {[%emt 0:00:06]} dxc6 {[%emt 0:00:03]} 6. Nbd2 {[%emt 0:00:07] C65: Ruy Lopez: Berlin Defence (3...Nf6), unusual lines and 4 0-0 Bc5.} (6. Bg5 h6 7. Bh4 Bd6 8. Nbd2 Qe7 9. Nc4 Bg4 10. h3 Bxf3 11. Qxf3 g5 12. Bg3 Qe6 13. Ne3 O-O-O 14. Qf5 Rde8 15. Qxe6+ Rxe6 16. Nf5 Nh5 17. f3 Rg8 {1-0 (50) Caruana,F (2781)-Swiercz,D (2656) Chess.com INT 2022}) 6... Be6 {[%emt 0:00:13]} 7. O-O {[%emt 0:00:23]} Qd6 {[%emt 0:00:28] 7...Bd6 is becoming the main line.} 8. b3 {[%emt 0:00:26] White is slightly better.} a5 {[%emt 0:00:11]} 9. Bb2 {[%emt 0:00:12] Hoping for d4.} Nd7 {[%emt 0:00:10]} 10. Ng5 {[%emt 0:00:22]} a4 {[%emt 0:09:01]} 11. Ndf3 {[%emt 0:00:20] [#]} O-O $146 {[%emt 0:01:39]} ({Predecessor:} 11... f6 12. Nxe6 Qxe6 13. d4 exd4 14. Nxd4 Bxd4 15. Qxd4 O-O 16. Rfd1 Rf7 17. f3 b6 {½-½ (26) Hablizel,F (2301)-Popov,V (2087) ICCF email 2016}) 12. Nh4 {[%emt 0:00:12]} Rfe8 {[%emt 0:26:22]} 13. Nxe6 {[%emt 0:04:15]} Qxe6 {[%emt 0:00:15]} 14. Nf5 {[%emt 0:00:11]} g6 {[%emt 0:06:06]} 15. Ng3 {[%emt 0:03:01]} (15. Nh6+ {seems wilder.} Kg7 16. Qd2 Qe7 17. h3) 15... Qd6 {[%emt 0:03:41]} 16. Qg4 {[%emt 0:06:13]} Qe6 {[%emt 0:05:34]} 17. Qg5 {[%emt 0:17:46]} Qe7 {[%emt 0:04:53]} (17... Be7 {looks sharper.} 18. Qd2 b5 19. f4 exf4 20. Qxf4 Bd6) 18. Qc1 {[%emt 0:14:00]} Nf8 {[%emt 0:12:47]} 19. Kh1 {[%emt 0:01:09]} Bd6 {[%emt 0:00:41]} (19... a3 $5 20. Bc3 $8 b5 $11) 20. Ne2 {[%emt 0:06:13]} Ne6 {[%emt 0:00:26]} (20... a3 $5 21. Bc3 $8 Ne6 $11) 21. g3 {[%emt 0:00:41]} a3 {[%emt 0:12:31]} 22. Bc3 {[%emt 0:00:09]} c5 {[%emt 0:00:02]} 23. Kg2 {[%emt 0:06:28]} (23. f4 $142 Nd4 24. Qd2) 23... f5 {[%emt 0:02:36]} 24. exf5 {[%emt 0:05:53]} gxf5 {[%emt 0:00:01]} 25. Ng1 {[%emt 0:00:17]} Qf7 {[%emt 0:11:48]} 26. Qd2 {[%emt 0:02:23]} Nd4 {[%emt 0:00:36]} 27. Rae1 {[%emt 0:00:23]} Re6 {[%emt 0:02:01]} 28. Bxd4 {[%emt 0:08:55]} cxd4 {[%emt 0:00:01]} 29. Nf3 {[%emt 0:00:05]} Re7 {[%emt 0:00:47]} 30. Nh4 {[%emt 0:01:04]} Rf8 {[%emt 0:00:46]} 31. c4 {[%emt 0:01:51]} dxc3 {[%emt 0:00:19]} 32. Qxc3 {[%emt 0:00:05]} Qd5+ {[%emt 0:00:10]} 33. Kg1 {[%emt 0:04:00]} Rg7 {[%emt 0:01:03]} 34. Ng2 {[%emt 0:01:38]} (34. Qc4 $11 c6 35. Nf3) 34... Kh8 {[%emt 0:00:43]} (34... b5 $15 {should be considered.}) 35. Ne3 {[%emt 0:01:04]} (35. Qc4 $11 Qxc4 36. dxc4) 35... Qb5 {[%emt 0:00:01]} (35... Qe6 $1 $15 36. f4 exf4) 36. Nc4 $11 {[%emt 0:00:54]} Re8 {[%emt 0:00:37]} 37. Qc1 {[%emt 0:03:07]} Qd5 {[%emt 0:00:29]} (37... Bb4 $5 {[%cal Rb4e1]}) 38. Nxd6 {[%emt 0:02:45]} Qxd6 {[%emt 0:00:31]} 39. Qc3 {[%emt 0:00:49]} Rd7 {[%emt 0:00:37]} 40. Re3 {[%emt 0:00:16]} Qd4 {[%emt 0:00:39]} 41. Qa5 {[%emt 0:35:05]} f4 {[%emt 0:24:27]} 42. Re4 {[%emt 0:00:00]} Qb2 {[%emt 0:00:04]} 43. Rfe1 $1 {[%emt 0:00:00][%cal Re4e5]} Rxd3 {[%emt 0:04:30]} (43... b6 $16 44. Qb4 Rdd8) 44. Qxc7 {[%emt 0:00:00]} (44. Rxe5 $18 {is the precise move to win.} Rf8 45. Re8) 44... fxg3 $16 {[%emt 0:03:02]} 45. hxg3 {[%emt 0:00:00] White threatens Rh4 and mate.} Qc3 {[%emt 0:00:23]} 46. Qxc3 $1 {[%emt 0:00:00]} (46. Qxb7 {is a self mate.} Rxg3+ $1 {[%mdl 512]} 47. Kf1 Reg8 $1) 46... Rxc3 {[%emt 0:00:01][%mdl 4096] Endgame KRR-KRR} 47. R1e2 {[%emt 0:00:00] Inhibits Rc2.} ({Much weaker is} 47. Rxe5 $6 Rxe5 48. Rxe5 Rc2 $14) 47... Rc1+ {[%emt 0:00:34][%cal Bc3c1,Bc1b1,Bb1b2][%mdl 32]} 48. Kg2 {[%emt 0:00:00]} Rb1 {[%emt 0:00:09]} 49. f4 {[%emt 0:00:00]} ({White should try} 49. Rxe5 $16 Rxe5 50. Rxe5) 49... Rb2 $14 {[%emt 0:00:35]} 50. fxe5 {[%emt 0:00:00][%cal Bf4e5,Be5e6][%mdl 32]} Kg7 {[%emt 0:00:06]} 51. Rf2 {[%emt 0:00:00]} Rc8 {[%emt 0:01:34]} (51... Rf8 $11 {remains equal.} 52. Rg4+ Kh6) 52. Rg4+ $16 {[%emt 0:01:05]} Kh6 {[%emt 0:00:03] [#]} 53. e6 $1 {[%emt 0:00:04]} Rf8 {[%emt 0:01:08]} 54. Rgf4 {[%emt 0:00:49]} Rxf4 {[%emt 0:00:28][%mdl 8192]} (54... Re8 $16) 55. gxf4 {[%emt 0:00:05][%cal Bg3f4,Bf4f5,Bf5f6][%mdl 32] KR-KR} Kg7 {[%emt 0:00:15]} 56. f5 {[%emt 0:01:09]} Kf6 {[%emt 0:00:01]} 57. Kf3 {[%emt 0:01:56] Black must now prevent Re2.} b5 {[%emt 0:00:38]} 58. Re2 {[%emt 0:00:27] White mates.} Ke7 {[%emt 0:00:58]} 59. Re1 {[%emt 0:00:44]} Rxa2 {[%emt 0:00:43]} 60. f6+ {[%emt 0:00:14] Weighted Error Value: White=0.13 (very precise) /Black=0.33} 1-0

[Event "USA Championship 2022"]
[Site "Saint Louis"]
[Date "2022.10.07"]
[Round "3.7"]
[White "Shankland, Sam"]
[Black "Niemann, Hans Moke"]
[Result "1/2-1/2"]
[ECO "E36"]
[WhiteElo "2712"]
[BlackElo "2699"]
[Annotator "TA"]
[PlyCount "114"]
[EventDate "2022.09.05"]
[EventType "tourn"]
[EventCountry "USA"]
[SourceTitle "playchess.com"]
[Source "ChessBase"]
[SourceQuality "1"]
[TimeControl "40/5400+30:1800+30"]

{[%evp 15,114,7,17,10,5,-6,0,-15,14,20,34,0,38,43,30,19,38,41,55,45,54,47,47,54,44,46,47,50,50,47,56,47,33,33,57,61,68,61,89,61,59,61,63,43,43,8,8,8,8,8,8,8,8,8,8,8,52,0,56,56,56,56,56,56,56,56,56,56,56,56,56,56,56,56,56,56,56,0,56,56,56,56,56,8,8,8,8,0,8,0,56,56,56,56,56,0,56,0,56,0,56]} 1. d4 {[%emt 0:00:11]} Nf6 {[%emt 0:00:34]} 2. c4 {[%emt 0:00:05]} e6 {[%emt 0:00:09]} 3. Nc3 {[%emt 0:00:06]} Bb4 {[%emt 0:01:38]} 4. Qc2 {[%emt 0:00:06]} O-O {[%emt 0:03:21]} 5. a3 {[%emt 0:00:00]} Bxc3+ {[%emt 0:00:14]} 6. Qxc3 {[%emt 0:00:19]} d5 {[%emt 0:00:30]} 7. Nf3 {[%emt 0:00:30]} dxc4 {[%emt 0:00:30]} 8. Qxc4 {[%emt 0:00:00]} b6 {[%emt 0:03:12]} 9. Bg5 {[%emt 0:00:00] E36: Nimzo-Indian: Classical: 4...d5 5 a3.} Ba6 {[%emt 0:00:14] [#]} 10. Qc1 $146 {[%emt 0:00:00]} ({Predecessor:} 10. Qa4 h6 11. Bh4 c5 12. dxc5 bxc5 13. Rd1 Qb6 14. Bxf6 gxf6 15. e3 Bxf1 16. Kxf1 {½-½ (31) Giri,A (2761)-So,W (2776) Stavanger 2022}) 10... Bb7 {[%emt 0:19:48]} 11. h4 {[%emt 0:01:13]} Nc6 {[%emt 0:08:21]} 12. Qf4 {[%emt 0:09:27]} Qd6 {[%emt 0:07:33]} 13. Rc1 {[%emt 0:06:42]} (13. h5 $5 {[%cal Rh5h6]}) 13... Nd5 {[%emt 0:07:38]} 14. Qxd6 {[%emt 0:03:06]} cxd6 {[%emt 0:00:08]} 15. e4 {[%emt 0:00:11]} Nf6 {[%emt 0:00:13]} 16. Bd3 {[%emt 0:00:52]} h6 {[%emt 0:03:54]} 17. Bxf6 {[%emt 0:04:50]} gxf6 {[%emt 0:00:12]} 18. Ke2 {[%emt 0:02:13]} Rac8 {[%emt 0:02:19]} 19. Rc3 {[%emt 0:02:06]} Ne7 {[%emt 0:00:27]} 20. Rhc1 {[%emt 0:00:10]} Rxc3 {[%emt 0:00:24]} 21. Rxc3 {[%emt 0:00:06] [#] Rc7 is the strong threat.} Rc8 {[%emt 0:00:12] Prevents Rc7.} 22. Rxc8+ {[%emt 0:06:05]} Bxc8 $14 {[%emt 0:00:31][%mdl 4096] Endgame KBN-KBN} 23. Nd2 {[%emt 0:00:29]} d5 {[%emt 0:00:48]} 24. e5 {[%emt 0:10:43]} f5 25. b4 {[%emt 0:16:33][%cal Bb2b4,Bb4b5][%mdl 32]} Bd7 {[%emt 0:09:58]} 26. b5 {[%emt 0:00:00]} Kg7 {[%emt 0:00:19]} 27. Ke3 {[%emt 0:00:00]} Ng6 {[%emt 0:06:33]} 28. h5 {[%emt 0:00:00]} Nf8 {[%emt 0:03:40]} 29. a4 {[%emt 0:00:00]} Be8 {[%emt 0:00:23]} 30. f3 {[%emt 0:00:48]} f6 {[%emt 0:05:50]} 31. g4 {[%emt 0:00:28]} fxe5 {[%emt 0:03:01]} 32. dxe5 {[%emt 0:00:01]} Nd7 {[%emt 0:00:11] [#] aiming for ...fxg4.} 33. Kd4 {[%emt 0:01:10]} ({Much weaker is} 33. gxf5 Nxe5 34. Bc2 (34. fxe6 Nxd3 35. Kxd3 Kf6 $17) 34... exf5 $17) 33... fxg4 {[%emt 0:00:12]} 34. fxg4 {[%emt 0:00:00]} Nc5 {[%emt 0:00:09] Inhibits Nb3.} 35. Bc2 {[%emt 0:00:02]} Bf7 {[%emt 0:06:05]} 36. Nb1 {[%emt 0:06:41]} (36. Kc3 $14) 36... Bg8 {[%emt 0:05:46]} (36... a5 $11) 37. a5 $1 {[%emt 0:01:20]} Bf7 {[%emt 0:01:47]} 38. a6 {[%emt 0:02:14]} Be8 {[%emt 0:00:12]} 39. Na3 {[%emt 0:02:26]} Bd7 {[%emt 0:01:22]} 40. Bd1 $1 {[%emt 0:01:02]} Ne4 {[%emt 0:01:28]} 41. Be2 {[%emt 0:31:36]} Kf7 {[%emt 0:01:54]} 42. Nc2 {[%emt 0:00:00]} Ke7 {[%emt 0:00:25]} 43. Ke3 $1 {[%emt 0:00:00]} Ng5 {[%emt 0:00:21]} 44. Nd4 {[%emt 0:00:00]} Nf7 {[%emt 0:01:33]} 45. Nf3 {[%emt 0:00:00]} Ng5 $1 {[%emt 0:00:10]} 46. Nd4 {[%emt 0:00:00]} Nf7 {[%emt 0:00:18]} 47. Kf4 {[%emt 0:00:00] Strongly threatening Nf3.} Ng5 {[%emt 0:00:05]} 48. Bf1 {[%emt 0:00:00]} Be8 {[%emt 0:00:55]} 49. Nf3 {[%emt 0:00:00]} (49. Bd3 $14 {is superior.}) 49... Nxf3 $11 {[%emt 0:00:32]} 50. Kxf3 {[%emt 0:00:00] KB-KB} Kf8 {[%emt 0:00:08]} 51. Kf4 {[%emt 0:00:00]} Kg7 {[%emt 0:00:09]} 52. Be2 {[%emt 0:00:00]} Bd7 {[%emt 0:00:14]} ({Black should play} 52... Bf7 $1 $11) 53. g5 $14 {[%emt 0:00:00]} Be8 {[%emt 0:00:24]} 54. Kg4 {[%emt 0:00:00]} Bd7 {[%emt 0:00:14]} 55. Kf4 {[%emt 0:00:00]} Be8 {[%emt 0:00:05]} 56. Kg4 {[%emt 0:00:00]} Bd7 {[%emt 0:00:04]} 57. Kf4 {[%emt 0:00:00]} Be8 {Weighted Error Value: White=0.10 (very precise) /Black=0.08 (flawless)} 1/2-1/2

[Event "USA Championship 2022"]
[Site "Saint Louis"]
[Date "2022.10.08"]
[Round "4.1"]
[White "So, Wesley"]
[Black "Shankland, Sam"]
[Result "1-0"]
[ECO "B92"]
[WhiteElo "2774"]
[BlackElo "2712"]
[Annotator "TA"]
[PlyCount "91"]
[EventDate "2022.09.05"]
[EventType "tourn"]
[EventCountry "USA"]
[SourceTitle "playchess.com"]
[Source "ChessBase"]
[SourceQuality "1"]
[TimeControl "40/5400+30:1800+30"]

{[%evp 17,91,9,18,4,7,8,12,10,11,0,22,17,21,22,14,16,28,36,35,35,35,25,27,16,35,34,32,36,35,30,29,0,2,2,12,28,37,10,27,18,29,16,11,0,5,0,0,4,46,55,109,110,110,112,282,306,220,302,276,277,296,296,276,264,759,754,705,714,730,721,737,681,29972,29973,29972,29970]} 1. e4 {[%emt 0:01:36]} c5 {[%emt 0:00:14]} 2. Nf3 {[%emt 0:00:06]} d6 {[%emt 0:00:05]} 3. d4 {[%emt 0:00:25]} cxd4 {[%emt 0:00:05]} 4. Nxd4 {[%emt 0:00:04]} Nf6 {[%emt 0:00:05]} 5. Nc3 {[%emt 0:00:03]} a6 {[%emt 0:00:05]} 6. Be2 {[%emt 0:00:28]} e5 {[%emt 0:00:07]} 7. Nb3 {[%emt 0:00:04]} Be7 {[%emt 0:00:05]} 8. O-O {[%emt 0:07:16]} O-O {[%emt 0:00:07]} 9. Be3 {[%emt 0:02:13]} Be6 {[%emt 0:00:36]} 10. Re1 {[%emt 0:01:06] B92: Sicilian Najdorf: 6 Be2.} Nbd7 {[%emt 0:02:37]} 11. a4 {[%emt 0:00:08]} Qc7 {[%emt 0:00:37]} 12. a5 {[%emt 0:01:46] The position is equal.} Rfc8 {[%emt 0:02:02]} 13. Bf3 {[%emt 0:03:00]} h6 {[%emt 0:07:07]} 14. h3 {[%emt 0:06:54]} b5 {[%emt 0:10:54] 14...Rab8 is becoming the main line.} 15. axb6 $1 {[%emt 0:00:38]} Nxb6 {[%emt 0:00:05]} 16. Na5 {[%emt 0:00:38]} Rab8 {[%emt 0:01:57] [#]} 17. Bc1 $146 {[%emt 0:16:56]} ({Predecessor:} 17. Qd2 Nc4 18. Nxc4 Bxc4 19. Reb1 a5 20. Qe1 Bd8 21. Bd2 Qc6 22. b3 Be6 23. Rc1 Bb6 24. Na4 Bd4 25. Rab1 d5 26. exd5 Bxd5 27. Bxd5 Qxd5 28. Be3 Qe4 {½-½ (28) Frolyanov,D (2567)-Nechepurenko,R (2476) Zvenigorod 2008}) 17... Nc4 {[%emt 0:05:19]} 18. Nxc4 {[%emt 0:01:36]} Bxc4 {[%emt 0:00:06]} 19. Be2 {[%emt 0:02:39]} Bxe2 {[%emt 0:08:16]} 20. Rxe2 {[%emt 0:03:43]} Qb7 {[%emt 0:03:38]} 21. Qd3 {[%emt 0:06:57]} (21. f3 {feels hotter.} Rc4 22. Rd2 Rbc8 23. Kh2) 21... Rc6 {[%emt 0:00:20]} 22. b3 {[%emt 0:02:29]} Bd8 {[%emt 0:02:30]} 23. Kh2 {[%emt 0:07:08]} Bb6 {[%emt 0:04:18][%cal Oc6c3]} 24. Nd1 {[%emt 0:08:39]} Bd4 {[%emt 0:09:06]} 25. c3 {[%emt 0:00:52]} Rbc8 {[%emt 0:01:55][%cal Rd4c3]} (25... Qxb3 $2 26. Rb2 Qxb2 27. Bxb2 $18) 26. Bd2 {[%emt 0:04:46]} Ba7 {[%emt 0:02:40]} 27. Ra3 {[%emt 0:03:16]} Bc5 {[%emt 0:01:49]} 28. b4 {[%emt 0:00:19]} Ba7 {[%emt 0:00:07]} 29. f3 {[%emt 0:03:11]} Rd8 {[%emt 0:04:46]} ({Less strong is} 29... Qb6 30. Be3 Qb8 31. b5 $18 (31. Rxa6 Bxe3 32. Nxe3 Rxa6 $16)) 30. Be3 $36 {[%emt 0:01:50][%cal Ob4b5][%mdl 2048] White has good play.} Bb8 {[%emt 0:03:12]} 31. Rea2 {[%emt 0:01:48][%cal Ra3a6]} d5 {[%emt 0:04:52] ...Rcd6 is the strong threat.} 32. Nf2 {[%emt 0:03:18][%cal Ra3a6]} Rdc8 {[%emt 0:04:31]} 33. Bc5 {[%emt 0:00:33][%cal Ra3a6]} ({Much worse is} 33. Rxa6 Rxc3 34. Qd2 d4 35. Bxh6 Nh7 $11) 33... Bd6 {[%emt 0:07:00]} (33... d4 $14) 34. Bxd6 $16 {[%emt 0:00:32]} ({But not} 34. Rxa6 $6 Bxc5 35. Rxc6 Qxc6 $11) 34... Rxd6 {[%emt 0:00:02]} 35. Rxa6 {[%emt 0:00:23]} Rdd8 {[%emt 0:01:16] [#] Black cannot hold the game after this.} (35... Rxc3 $16 {was necessary.} 36. Qxc3 Rxa6 37. Rxa6 Qxa6) 36. Rxf6 $1 $18 {[%emt 0:02:51][%mdl 512]} gxf6 {[%emt 0:00:01]} 37. Ng4 {[%emt 0:00:06][%csl LRf6,LRh6]} Kg7 {[%emt 0:01:25]} 38. Qd2 {[%emt 0:04:00]} Rh8 {[%emt 0:00:05]} 39. exd5 {[%emt 0:04:50][%cal Be4d5,Bd5d6][%mdl 32] Hoping for Ne3.} Qc7 {[%emt 0:00:08]} 40. Ra3 {[%emt 0:00:46]} e4+ $2 {[%emt 0:05:48]} (40... Qc4 41. Ne3 Qf4+ 42. g3 Qxf3) 41. d6 {[%emt 0:03:48]} Qd7 {[%emt 0:00:02]} 42. Qf4 {[%emt 0:03:17]} Qe6 {[%emt 0:00:34]} 43. fxe4 {[%emt 0:00:35][%cal Oc3c4] And now c4! would win.} Rc4 {[%emt 0:00:54]} 44. Ne3 {[%emt 0:05:00] Black must now prevent Nf5+.} Rxe4 {[%emt 0:01:26]} 45. Nf5+ {[%emt 0:00:34]} Kg6 {[%emt 0:00:06]} 46. Qg3+ {[%emt 0:00:05] Weighted Error Value: White=0.04 (flawless) /Black=0.37} 1-0

[Event "USA Championship 2022"]
[Site "Saint Louis"]
[Date "2022.10.08"]
[Round "4.2"]
[White "Lenderman, Aleksandr"]
[Black "Yoo, Christopher Woojin"]
[Result "1-0"]
[ECO "E04"]
[WhiteElo "2535"]
[BlackElo "2563"]
[Annotator "TA"]
[PlyCount "139"]
[EventDate "2022.09.05"]
[EventType "tourn"]
[EventCountry "USA"]
[SourceTitle "playchess.com"]
[Source "ChessBase"]
[SourceQuality "1"]
[TimeControl "40/5400+30:1800+30"]

{[%evp 10,139,20,13,9,11,3,0,12,16,17,19,27,20,35,26,64,71,141,129,123,67,73,77,92,69,85,63,73,62,81,82,93,88,86,73,109,94,88,83,81,73,85,87,83,69,79,60,72,81,77,65,55,56,75,51,51,50,50,50,72,75,139,79,85,74,95,87,141,95,104,89,105,79,272,285,275,257,258,183,183,183,1560,1275,1658,1522,1548,1386,1556,525,1714,1583,878,763,712,649,1415,1471,970,895,855,671,29964,29964,29992,29993,29997,29970,29990,29949,29977,5118,29968,29970,29968,29970,29968,29969,29981,29982,29982,29977,29976,29971,29967,29971,29981,29975,29987,29988,29988,29989]} 1. d4 {[%emt 0:00:03]} Nf6 {[%emt 0:02:49]} 2. c4 {[%emt 0:00:07]} e6 {[%emt 0:00:14]} 3. g3 {[%emt 0:00:07]} d5 {[%emt 0:01:34]} 4. Bg2 {[%emt 0:00:07]} dxc4 {[%emt 0:00:11]} 5. Nf3 {[%emt 0:00:07]} a6 {[%emt 0:00:18]} 6. Ne5 {[%emt 0:00:09][%mdl 1024] White has compensation.} Bb4+ {[%emt 0:00:10] E04: Open Catalan: 5 Nf3.} 7. Nc3 {[%emt 0:00:08]} Nd5 {[%emt 0:00:45]} 8. O-O {[%emt 0:00:07] And now Nxd5 would win.} O-O {[%emt 0:05:41] The position is equal.} 9. Ne4 $1 {[%emt 0:00:04][%mdl 4] now scores much better than the old 9.Qc2.} b5 {[%emt 0:02:42]} 10. b3 {[%emt 0:00:04]} c3 {[%emt 0:04:27] [#]} 11. a3 $146 {[%emt 0:05:44]} ({Predecessor:} 11. Qc2 f6 12. Nd3 Nc6 13. Be3 Rb8 14. Nxb4 Ncxb4 15. Qc1 Nxe3 16. fxe3 Bb7 17. Qxc3 Bxe4 18. Bxe4 {1-0 (33) Deac,B (2639)-Maghsoodloo,P (2695) Chess.com INT 2021}) 11... Be7 {[%emt 0:03:43]} 12. Qe1 {[%emt 0:09:12]} b4 {[%emt 0:07:42]} 13. axb4 {[%emt 0:00:40] White is more active.} f6 {[%emt 0:03:39]} (13... Bb7 $142) 14. Nd3 $16 {[%emt 0:01:37]} Nc6 {[%emt 0:00:38]} 15. e3 {[%emt 0:09:42]} (15. Nxc3 $16 Bxb4 16. Nxb4 Ndxb4 17. Ba3) 15... Bxb4 {[%emt 0:09:16]} 16. Ba3 {[%emt 0:06:49] Bxb4 is the strong threat.} Rb8 {[%emt 0:00:52]} 17. Nxb4 {[%emt 0:06:15]} Ncxb4 {[%emt 0:00:31]} 18. Bxb4 {[%emt 0:12:00]} (18. Nxc3 Nc2 19. Qd1 Nxa1 20. Nxd5 exd5 $15) 18... Rxb4 {[%emt 0:00:15]} 19. Nc5 {[%emt 0:01:56]} e5 {[%emt 0:04:40]} 20. dxe5 {[%emt 0:06:04]} Rb5 {[%emt 0:01:06]} 21. Na4 {[%emt 0:01:59]} c2 {[%emt 0:05:39] Against Rd1} (21... Rxb3 $2 22. Qe2 Rb5 23. Qc4 $18) 22. Nc3 {[%emt 0:05:29]} Rc5 {[%emt 0:06:26]} (22... fxe5 $2 23. Nxb5 axb5 24. e4 $18 (24. Qd2 Nf4 $16)) 23. Nxd5 {[%emt 0:02:28]} Rxd5 {[%emt 0:00:18]} 24. Qc3 {[%emt 0:03:38]} Rxe5 {[%emt 0:03:29]} 25. Qxc2 {[%emt 0:00:15]} c5 {[%emt 0:00:24]} 26. Rfd1 {[%emt 0:02:09]} Qb6 {[%emt 0:00:40]} 27. Rd5 {[%emt 0:06:38]} Be6 {[%emt 0:02:51]} 28. Rxe5 {[%emt 0:00:28]} fxe5 {[%emt 0:00:06]} 29. Rb1 {[%emt 0:10:28]} Rb8 {[%emt 0:06:01]} 30. Be4 {[%emt 0:01:38]} h6 {[%emt 0:01:44]} 31. Qc3 {[%emt 0:02:24] Against c4} Qd6 {[%emt 0:08:24][%cal Oc5c4]} 32. Bf3 {[%emt 0:00:20]} (32. Bc2 {is interesting.} Bh3 33. Qc4+ Qe6 34. Qd3) 32... Kh8 {[%emt 0:15:19][%cal Oc5c4]} 33. Rd1 {[%emt 0:00:46]} Qc7 {[%emt 0:00:51]} 34. Bd5 {[%emt 0:01:55]} Rd8 {[%emt 0:00:47]} 35. e4 {[%emt 0:00:11]} Qf7 {[%emt 0:00:37]} (35... Bxd5 $142 36. Rxd5 Rxd5 37. exd5 Qd6) 36. Qd3 {[%emt 0:02:49]} (36. Qxe5 $6 Qf3 37. Qxe6 Qxd1+ 38. Kg2 Rf8 $11) (36. Rd3 $142) 36... a5 {[%emt 0:01:34]} 37. h4 {[%emt 0:01:11]} Qf6 {[%emt 0:01:23]} 38. Qc3 {[%emt 0:01:01]} Bh3 {[%emt 0:00:56]} ({Black should play} 38... Bxd5 39. exd5 (39. Rxd5 Rxd5 40. exd5 Qd6 $14) 39... Qb6) 39. Rd2 {[%emt 0:00:56]} (39. Qxa5 {gets mated.} Rxd5 $1 {[%mdl 512]} 40. f4 Rxd1+ 41. Kh2 exf4 $1 42. Qa8+ Kh7 43. Qe8 Rh1+ $3 {[%mdl 512]} 44. Kxh1 fxg3) ({White should try} 39. Rd3) 39... Rf8 {[%emt 0:00:25]} 40. Kh2 {[%emt 0:00:41]} Bg4 {[%emt 0:00:49]} 41. Qxc5 {[%emt 0:31:51]} g5 $2 {[%emt 0:03:23] Loses the game.} (41... Qf3 $16 {might work better.}) 42. hxg5 $18 {[%emt 0:00:00]} ({Worse is} 42. Qxa5 gxh4 43. Qc5 hxg3+ 44. fxg3 Qf1 $11) 42... hxg5 {[%emt 0:00:13] [#]} 43. Bc4 $1 {[%emt 0:00:00]} Rc8 {[%emt 0:12:37]} 44. Qxa5 {[%emt 0:00:00]} Bf3 {[%emt 0:02:25] [#] ( -> ...Qh6+)} 45. Kg1 $1 {[%emt 0:00:00]} ({Weaker is} 45. Qa6 Qxa6 46. Bxa6 Rc6 $17) 45... g4 $2 {[%emt 0:01:32]} (45... Bxe4 46. Re2 Bf3) 46. Rd5 {[%emt 0:00:00]} Re8 {[%emt 0:07:27]} 47. Qd2 {[%emt 0:00:00]} Bxe4 {[%emt 0:01:18]} 48. Rd6 {[%emt 0:00:00]} Qg7 {[%emt 0:00:03]} 49. Rd8 {[%emt 0:00:00]} (49. Rh6+ $142 Bh7 50. b4) 49... Bc6 {[%emt 0:03:00]} 50. Rxe8+ {[%emt 0:00:00]} Bxe8 {[%emt 0:00:00][%mdl 4096] Endgame KQB-KQB} 51. Qd8 {[%emt 0:00:00]} Qd7 {[%emt 0:00:00]} 52. Qh4+ {[%emt 0:00:00]} Kg7 {[%emt 0:00:00]} 53. Qg5+ {[%emt 0:00:00]} Kh7 {[%emt 0:00:00]} 54. Qxe5 {[%emt 0:01:25] Black must now prevent Bd5.} Bg6 {[%emt 0:01:06]} 55. Bd5 {[%emt 0:00:41] Threatening mate with b4.} Kh6 {[%emt 0:01:35]} 56. b4 {[%emt 0:00:55]} Qa4 {[%emt 0:00:32]} 57. Qh8+ {[%emt 0:00:54]} Kg5 {[%emt 0:00:19]} 58. Qd4 {[%emt 0:00:08]} Qc2 {[%emt 0:00:22]} 59. Kg2 {[%emt 0:00:42]} Qb1 {[%emt 0:00:11]} 60. Bc6 {[%emt 0:00:56]} (60. Kh2 $142 Bd3 61. Qf4+ Kg6 62. Qxg4+ Kh6 63. Qe6+ Kh7 64. Qf7+ Kh6 65. Qf8+ Kg5 66. Qe7+ Kg6 67. Qf7+ Kh6 68. Qf8+ Kh7 69. Bg8+ Kh8 70. Bf7+ Kh7 71. Qg8+ Kh6 72. Qh8+ Bh7 73. Qf8+ Kg5 74. Qg7+ Bg6 75. f4+ Kg4 76. Qxg6+ Qxg6 77. Bxg6) 60... Kh6 {[%emt 0:01:10]} 61. Qxg4 {[%emt 0:01:06] White mates.} Bd3 {[%emt 0:00:03]} 62. Qf4+ {[%emt 0:00:14]} Kg7 {[%emt 0:00:04]} 63. Qd4+ {[%emt 0:00:05]} Kf7 {[%emt 0:00:03]} 64. Bd5+ {[%emt 0:00:18]} Kg6 {[%emt 0:00:11]} 65. Kh2 {[%emt 0:00:31]} Qc2 {[%emt 0:00:18]} 66. b5 {[%emt 0:01:10][%cal Bb4b5,Bb5b6][%mdl 32]} Qe2 {[%emt 0:00:06]} 67. b6 {[%emt 0:00:36]} Qh5+ {[%emt 0:00:04]} 68. Kg2 {[%emt 0:00:11]} Qd1 {[%emt 0:00:37]} 69. Be4+ {[%emt 0:00:16]} Bxe4+ {[%emt 0:00:05]} 70. Qxe4+ {[%emt 0:00:02] Weighted Error Value: White=0.23 (precise) /Black=0.32} 1-0